[Event "GER-ch Youth-ODJM 2022"]
[Site "Willingen"]
[Date "2022.06.05"]
[Round "2.22"]
[White "Matthes, Benjamin"]
[Black "Gallasch, Robin"]
[Result "0-1"]
[ECO "B14"]
[WhiteElo "1851"]
[BlackElo "2063"]
[Annotator "TA"]
[PlyCount "124"]
[EventDate "2022.06.05"]
[EventType "swiss"]
[EventRounds "9"]
[EventCountry "GER"]
[SourceTitle "playchess.com"]
[Source "ChessBase"]
[SourceQuality "1"]
[TimeControl "40/4500+30:900+30"]

{[%evp 27,124,18,24,14,14,20,34,13,27,37,32,-10,-10,-8,0,-8,0,0,0,0,0,-2,-6,-6,0,-8,9,0,0,0,0,0,0,0,0,0,0,0,0,-7,0,0,8,8,8,8,14,0,0,0,0,0,0,0,0,0,0,0,0,-8,-16,-1039,-592,-1734,-1712,-995,-455,-5019,-4618,-29965,-29969,-29970,-29971,-29965,-29973,-29972,-29973,-29982,-29983,-29995,-29972,-29987,-29986,-29987,-29984,-29989,-29990,-29991,-29992,-29995,-29989,-29989,-29990,-29990,-29991,-29992,-29990,-29990,-29991]} 1. e4 {[%emt 0:00:00]} c6 {[%emt 0:00:00]} 2. d4 {[%emt 0:00:00]} d5 {[%emt 0:00:00]} 3. exd5 {[%emt 0:00:00]} cxd5 {[%emt 0:00:00]} 4. c4 {[%emt 0:00:00]} Nf6 {[%emt 0:00:00]} 5. Nc3 {[%emt 0:00:00]} g6 {[%emt 0:00:00]} 6. Qb3 {[%emt 0:00:00]} Bg7 {[%emt 0:00:00]} 7. cxd5 {[%emt 0:00:00]} O-O {[%emt 0:00:00]} 8. Be2 {[%emt 0:00:00]} Na6 {[%emt 0:00:00]} 9. Bf3 {[%emt 0:00:00]} Qb6 {[%emt 0:00:00]} 10. Qxb6 {[%emt 0:00:00]} axb6 {[%emt 0:00:00]} 11. Nge2 {[%emt 0:00:00]} Nb4 {[%emt 0:00:00]} 12. O-O {[%emt 0:00:00]} Rd8 {[%emt 0:00:00]} 13. d6 {[%emt 0:00:00]} Rxd6 {[%emt 0:00:00]} 14. Bf4 {[%emt 0:00:00]} Rd7 {[%emt 0:00:00]} 15. Rfd1 {[%emt 0:18:41] B14: Caro-Kann: Panov-Botvinnik Attack with 5...e6 and 5...g6.} Nbd5 {[%emt 0:11:33] was the old line (15...Nfd5).} 16. Be5 {[%emt 0:12:18]} Rd8 {[%emt 0:12:10]} 17. Nxd5 {[%emt 0:15:43] White is slightly better.} Nxd5 {[%emt 0:00:13]} 18. Bxg7 {[%emt 0:00:07]} Kxg7 {[%emt 0:00:06]} 19. Rac1 {[%emt 0:04:38]} (19. Bxd5 $5 Rxd5 20. Nc3 $11) 19... Be6 {[%emt 0:02:06]} 20. a3 {[%emt 0:05:34]} Rd7 {[%emt 0:05:16] [#]} 21. Nc3 $146 {[%emt 0:06:05]} ({Predecessor:} 21. Rd2 h6 22. h3 Rad8 23. g4 Nf6 {½-½ (23) Stoffers,B (1526)-Berkley,S (1642) IECC email 2000}) 21... Ra5 {[%emt 0:09:57]} 22. g3 {[%emt 0:14:40]} Nxc3 {[%emt 0:15:19]} 23. Rxc3 {[%emt 0:00:02][%cal Od4d5]} Bd5 {[%emt 0:00:34]} 24. Bg2 {[%emt 0:06:42]} Bxg2 {[%emt 0:00:24]} 25. Kxg2 $11 {[%emt 0:00:16][%mdl 4096] Endgame KRR-KRR} Rad5 {[%emt 0:00:26]} 26. f4 {Against e5} f6 {[%emt 0:14:41][%cal Bf7f6,Bf6e5,Be5d4][%mdl 32]} 27. Rb3 {[%emt 0:00:35]} b5 {[%emt 0:00:47]} 28. Rb4 {[%emt 0:00:05]} e5 {[%emt 0:01:58]} 29. fxe5 {[%emt 0:00:15]} fxe5 {[%emt 0:00:06]} 30. Kf3 {[%emt 0:00:14]} exd4 {[%emt 0:00:26]} 31. Rd3 {[%emt 0:00:15]} Kf6 {[%emt 0:09:10]} 32. Ke4 {[%emt 0:00:53]} Re5+ {[%emt 0:00:14]} 33. Kf3 {[%emt 0:00:15]} Rf5+ {[%emt 0:02:32]} 34. Ke4 {[%emt 0:02:12]} Kg5 {[%emt 0:02:06]} 35. Rdxd4 {[%emt 0:01:01]} Rxd4+ {[%emt 0:00:24]} 36. Rxd4 {[%emt 0:02:19] KR-KR} Rf2 {[%emt 0:01:49][%csl LRb2,LRh2]} 37. Rd5+ {[%emt 0:00:36]} Kg4 {[%emt 0:00:14]} 38. Rxb5 {[%emt 0:00:17]} Rxh2 {[%emt 0:00:08]} 39. Rxb7 {[%emt 0:00:33] [#] Threatens to win with a4.} Kxg3 {[%emt 0:00:08]} 40. b4 {[%emt 0:00:31]} g5 {[%emt 0:01:46] Hoping for ...h5.} 41. a4 {[%emt 0:00:00][%cal Ba3a4,Ba4a5][%mdl 32] aiming for a5.} h5 {[%emt 0:00:00][%cal Bh7h5,Bh5h4,Bh4h3][%mdl 32]} 42. a5 {[%emt 0:08:53]} Ra2 {[%emt 0:00:00]} 43. Rb5 {[%emt 0:06:02]} Kg4 {[%emt 0:00:00] And now ...h4 would win.} 44. Rd5 $2 {[%emt 0:01:36][%mdl 8192] Loses the game.} (44. Ke5 $11) 44... h4 $19 {[%emt 0:00:00]} 45. b5 {[%emt 0:00:46]} Rxa5 {[%emt 0:08:32] Strongly threatening ...h3.} 46. b6 {[%emt 0:00:42]} Ra8 {[%emt 0:00:06]} (46... Ra1 $142 47. b7 Rb1) 47. Ke3 {[%emt 0:00:25]} (47. b7 $142 Rb8 48. Rb5) 47... h3 {[%emt 0:03:09] ( -> ...h2)} 48. Kf2 {[%emt 0:00:33]} Ra2+ {[%emt 0:00:37] Black mates.} 49. Kg1 {[%emt 0:00:20]} Rb2 {[%emt 0:00:08]} 50. Rd4+ {[%emt 0:00:53]} Kg3 {[%emt 0:00:23]} 51. Rd3+ {[%emt 0:00:27] [#]} Kh4 $1 {[%emt 0:00:06]} 52. Rd6 {[%emt 0:00:35]} g4 {[%emt 0:00:24][%cal Bg5g4,Bg4g3][%mdl 32]} 53. Rd1 {[%emt 0:00:29]} Rxb6 {[%emt 0:00:22]} 54. Kh2 {[%emt 0:00:21]} Rb2+ {[%emt 0:01:35]} 55. Kh1 {[%emt 0:00:06]} Rb3 {[%emt 0:02:43]} 56. Kh2 {[%emt 0:00:56]} g3+ {[%emt 0:00:15]} 57. Kg1 {[%emt 0:00:21]} Kg4 {[%emt 0:00:11]} 58. Rc1 {[%emt 0:00:30]} Kf3 {[%emt 0:00:32]} 59. Rf1+ {[%emt 0:00:08]} Ke2 {[%emt 0:00:13]} 60. Ra1 {[%emt 0:01:06]} Rd3 {[%emt 0:00:18]} 61. Ra2+ {[%emt 0:00:32]} Rd2 {[%emt 0:00:08]} 62. Ra1 {[%emt 0:00:29]} Rd1+ {[%emt 0:00:20] Weighted Error Value: White=0.50/Black=0.12 (very precise)} 0-1

[Event "GER-ch Youth-ODJM 2022"]
[Site "Willingen"]
[Date "2022.06.06"]
[Round "3.1"]
[White "Nied, Pascal"]
[Black "Stelmaszyk, Nico"]
[Result "1/2-1/2"]
[ECO "B33"]
[WhiteElo "2008"]
[BlackElo "2293"]
[Annotator "TA"]
[PlyCount "134"]
[EventDate "2022.06.05"]
[EventType "swiss"]
[EventRounds "9"]
[EventCountry "GER"]
[SourceTitle "playchess.com"]
[Source "ChessBase"]
[SourceQuality "1"]
[TimeControl "40/4500+30:900+30"]

{[%evp 25,134,18,4,1,8,9,9,4,12,0,10,0,19,8,30,34,57,37,20,22,22,28,34,22,25,25,22,23,29,27,35,23,27,33,43,41,65,21,35,16,18,13,12,6,25,29,20,4,27,23,25,25,77,71,70,57,47,45,122,70,79,81,122,122,142,107,211,8,8,8,8,0,8,8,8,8,8,0,0,0,0,0,0,0,0,0,0,-8,0,0,0,0,0,0,0,0,0,0,0,0,0,0,8,8,8,8,8,8,8,8,8]} 1. e4 {[%emt 0:00:00]} c5 {[%emt 0:00:00]} 2. Nf3 {[%emt 0:00:00][%cal Bg1f3,Bf3d4,Bd4b5,Bb5a3,Ba3c2][%mdl 32]} e6 {[%emt 0:00:00]} 3. d4 {[%emt 0:00:00]} cxd4 {[%emt 0:00:00]} 4. Nxd4 {[%emt 0:00:00]} Nf6 {[%emt 0:00:00]} 5. Nc3 {[%emt 0:00:00]} Nc6 {[%emt 0:00:00]} 6. Ndb5 {[%emt 0:00:00]} d6 {[%emt 0:00:00]} 7. Bf4 {[%emt 0:00:00]} e5 {[%emt 0:00:00]} 8. Bg5 {[%emt 0:00:00]} a6 {[%emt 0:00:00]} 9. Na3 {[%emt 0:00:00]} b5 {[%emt 0:00:00]} 10. Nd5 {[%emt 0:00:00]} Be7 {[%emt 0:00:00]} 11. Bxf6 {[%emt 0:00:00]} Bxf6 {[%emt 0:00:00]} 12. c4 {[%emt 0:00:00]} b4 {[%emt 0:00:00] 12...0-0 is the fancy move.} 13. Nc2 {[%emt 0:00:00]} a5 {[%emt 0:00:00]} 14. g3 {[%emt 0:00:00] B33: Sicilian: Pelikan and Sveshnikov Variations.} g6 {[%emt 0:00:00] 14...Bg5 is vanishing.} 15. Bg2 {[%emt 0:00:00]} Bg7 {[%emt 0:00:00]} 16. O-O {[%emt 0:00:00]} O-O {[%emt 0:00:00]} 17. Nde3 {[%emt 0:00:00] [#]} Ra7 $146 {[%emt 0:00:00]} ({Predecessor:} 17... Be6 18. Qd3 Qb6 19. b3 a4 20. Rfd1 Ra7 21. Rab1 axb3 22. axb3 Bh6 23. Ra1 Rfa8 24. Rxa7 Rxa7 {½-½ (29) Santorelli,A (2353)-Pravec,L (2351) ICCF email 2014}) 18. Qd3 {[%emt 0:03:19]} Be6 {[%emt 0:06:04]} 19. b3 {[%emt 0:08:13]} Qb6 {[%emt 0:05:04]} 20. Rad1 {[%emt 0:02:04]} Rd7 {[%emt 0:04:48]} 21. Kh1 {[%emt 0:03:12]} Ne7 {[%emt 0:13:37]} 22. f4 {[%emt 0:09:03]} exf4 {[%emt 0:05:44]} 23. gxf4 {[%emt 0:07:15] [#] Black must now prevent f5.} f5 {[%emt 0:02:12]} 24. Nd4 {[%emt 0:16:23]} Bxd4 {[%emt 0:05:46]} 25. Qxd4 {[%emt 0:00:14]} Qxd4 {[%emt 0:00:20]} 26. Rxd4 {[%emt 0:00:03]} fxe4 {[%emt 0:00:39]} 27. Bxe4 {[%emt 0:13:02]} Rf6 {[%emt 0:05:06]} 28. Kg2 {[%emt 0:07:28]} Ra7 {[%emt 0:04:34]} 29. Kg3 {[%emt 0:02:09]} ({Much worse is} 29. Rxd6 {[#]} Bh3+ $1 30. Kxh3 Rxd6 31. Bd5+ Kg7 $17) 29... Ra6 {[%emt 0:02:49]} 30. Rfd1 {[%emt 0:02:23]} Bc8 {[%emt 0:06:00]} 31. R1d2 {[%emt 0:05:59] White is more active.} Kg7 {[%emt 0:05:13]} 32. Bc2 {[%emt 0:07:01]} Re6 {[%emt 0:11:11]} 33. Re4 {[%emt 0:00:58]} (33. Kf2 {is more complex.} Bb7 34. Bd1 Rf6 35. Bg4) 33... Rxe4 {[%emt 0:00:05]} 34. Bxe4 {[%emt 0:00:04]} Kf6 {[%emt 0:00:10]} 35. Kf3 {[%emt 0:01:28]} Be6 {[%emt 0:01:26]} 36. Bd5 {[%emt 0:00:57]} Bh3 {[%emt 0:03:41]} 37. Bb7 {[%emt 0:01:18]} Rb6 {[%emt 0:00:07]} 38. Be4 {[%emt 0:00:21]} Bc8 {[%emt 0:01:58]} (38... Ra6 $11 {remains equal.}) 39. Nd5+ $16 {[%emt 0:00:36]} Nxd5 {[%emt 0:00:10]} 40. Rxd5 {[%emt 0:00:23][%mdl 4096] Endgame KRB-KRB} ({But not} 40. cxd5 Rb5 $15) 40... Ra6 {[%emt 0:01:35]} 41. Rb5 {[%emt 0:00:00]} Ra7 {[%emt 0:00:00]} ({Black should play} 41... h5 $14) 42. Rb6 {[%emt 0:00:00]} (42. h4 $16) 42... Ke7 {[%emt 0:00:00]} 43. Ke3 {[%emt 0:00:00]} Bd7 {[%emt 0:00:00]} 44. Rb8 {[%emt 0:00:00]} Kf6 {[%emt 0:04:14]} 45. Kd4 {[%emt 0:00:41]} Rc7 {[%emt 0:01:53]} (45... Be6 $16 {was necessary.}) 46. Rb7 $2 {[%emt 0:01:30]} (46. Rf8+ $18 Kg7 47. Rd8) 46... Rxb7 $11 {[%emt 0:00:06] The position is equal.} 47. Bxb7 {[%emt 0:00:03] KB-KB} Ke7 {[%emt 0:06:02]} 48. Be4 {[%emt 0:02:22]} Be6 {[%emt 0:01:19]} 49. c5 {[%emt 0:01:00]} Kd7 $1 {[%emt 0:01:12]} 50. Bd5 {[%emt 0:00:59]} Bf5 {[%emt 0:01:50]} 51. Kc4 {[%emt 0:01:35]} dxc5 {[%emt 0:01:54]} 52. Kxc5 {[%emt 0:00:08]} Bb1 $1 {[%emt 0:00:59]} 53. Kb5 {[%emt 0:00:37]} Kd6 {[%emt 0:01:42]} 54. Bg8 {[%emt 0:00:11]} h6 {[%emt 0:01:09]} 55. Kxa5 {[%emt 0:02:57]} Kc5 {[%emt 0:00:06]} 56. h4 {[%emt 0:04:21]} Bxa2 {[%emt 0:00:38]} 57. h5 {[%emt 0:00:27]} gxh5 {[%emt 0:00:37][%cal Bg6h5,Bh5h4,Bh4h3,Bh3h2][%mdl 32] Strongly threatening ...h4.} 58. f5 {[%emt 0:00:47][%cal Bf4f5,Bf5f6][%mdl 32]} h4 {[%emt 0:00:25]} 59. f6 {[%emt 0:00:48] Intending f7 and mate.} Kd6 {[%emt 0:00:06]} (59... h3 60. f7 Kd4 61. f8=Q Ke5 62. Qg7+ Kf5 63. Qxh6 Kg4 64. Be6+ Kf3 65. Qxh3+ Kf4 66. Qh2+ Ke4 67. Qxa2) 60. Kxb4 {[%emt 0:00:50]} h3 {Hoping for ...Bb1.} 61. Bd5 {[%emt 0:00:33]} h2 {[%emt 0:01:30]} (61... Kxd5 $2 62. f7 $18) 62. Bh1 {[%emt 0:01:15]} Ke6 {[%emt 0:00:28]} 63. Kc3 {[%emt 0:00:23]} Kxf6 {[%emt 0:01:04]} 64. Kb2 {[%emt 0:00:14]} Bxb3 $1 {[%emt 0:00:13]} 65. Kxb3 {[%emt 0:00:02]} Kf5 {[%emt 0:00:35]} 66. Kc3 {[%emt 0:00:12]} Kf4 {[%emt 0:00:06]} 67. Kd2 {[%emt 0:00:06]} Ke5 {[%emt 0:00:09] Weighted Error Value: White=0.15 (very precise) /Black=0.11 (very precise)} 1/2-1/2

[Event "GER-ch Youth-ODJM 2022"]
[Site "Willingen"]
[Date "2022.06.06"]
[Round "3.2"]
[White "Brinkmann, Fabian"]
[Black "Reimer, Philip"]
[Result "1/2-1/2"]
[ECO "B34"]
[WhiteElo "2145"]
[BlackElo "1977"]
[Annotator "TA"]
[PlyCount "82"]
[EventDate "2022.06.05"]
[EventType "swiss"]
[EventRounds "9"]
[EventCountry "GER"]
[SourceTitle "playchess.com"]
[Source "ChessBase"]
[SourceQuality "1"]
[TimeControl "40/4500+30:900+30"]

{[%evp 17,82,16,27,0,0,0,0,-7,0,-18,-9,-13,-14,-14,0,-9,-15,-26,15,3,56,53,77,40,26,0,0,0,46,45,147,141,205,68,262,38,44,-13,16,27,36,52,54,41,58,28,31,20,19,0,0,13,12,0,27,0,0,0,0,0,0,0,0,0,0,0,0]} 1. e4 {[%emt 0:00:00]} c5 {[%emt 0:00:00]} 2. Nf3 {[%emt 0:00:00]} Nc6 {[%emt 0:00:00]} 3. d4 {[%emt 0:00:00]} cxd4 {[%emt 0:00:00]} 4. Nxd4 {[%emt 0:00:00]} Nf6 {[%emt 0:00:00]} 5. Nc3 {[%emt 0:00:00]} e5 {[%emt 0:00:00]} 6. Ndb5 {[%emt 0:00:00]} d6 {[%emt 0:00:00]} 7. Nd5 {[%emt 0:00:00]} Nxd5 {[%emt 0:00:00]} 8. exd5 {[%emt 0:00:00]} Ne7 {[%emt 0:00:00]} 9. c4 {[%emt 0:00:00]} Ng6 {[%emt 0:00:00]} 10. Be2 {[%emt 0:00:00] B33: Sicilian: Pelikan and Sveshnikov Variations.} (10. Qa4 $5 {[%cal Rb5c7]} Bd7 11. Qb4 $11) 10... a6 {[%emt 0:00:00]} 11. Nc3 {[%emt 0:00:00]} Be7 {[%emt 0:00:00]} 12. O-O {[%emt 0:00:00]} O-O {[%emt 0:00:00]} 13. Bd2 {[%emt 0:00:00]} f5 {[%emt 0:00:00] [#]} 14. a4 $146 {[%emt 0:00:00]} ({Predecessor:} 14. Kh1 e4 15. f4 exf3 16. gxf3 f4 17. Ne4 Bf5 18. Bd3 Ne5 19. Bc3 Bf6 20. Bxe5 Bxe5 {½-½ (39) Budde,V (2235)-Blaskowski,J Germany West 1980}) 14... e4 {[%emt 0:01:52]} 15. a5 {[%emt 0:08:23]} Ne5 {[%emt 0:24:33]} 16. f4 {[%emt 0:18:48]} exf3 $1 {[%emt 0:05:18]} 17. gxf3 {[%emt 0:01:41]} f4 {[%emt 0:04:38]} 18. Kh1 {[%emt 0:04:45]} g5 {[%emt 0:07:44]} ({Better is} 18... Ng6 $11) 19. Rg1 $14 {[%emt 0:04:08]} Kh8 {[%emt 0:00:15]} 20. Ne4 {[%emt 0:03:02][%cal Oc4c5] [#] c5! is the strong threat.} (20. Ra4 $5 {[%cal Rc3e4]}) 20... Bf5 {[%emt 0:19:50]} 21. Nf2 {[%emt 0:17:01]} Bf6 {[%emt 0:02:57]} 22. Bc3 {[%emt 0:03:39]} Nd7 {[%emt 0:00:47]} (22... h6 $11) 23. Qd2 {[%emt 0:02:21]} Be5 {[%emt 0:01:25]} (23... Ne5 $14) 24. Bd3 $16 {[%emt 0:03:19]} Qf6 {[%emt 0:01:26]} (24... Rc8 $16 25. Bxf5 Rxf5) 25. Rac1 {[%emt 0:04:03]} ({Only move:} 25. Bxf5 $18 Qxf5 26. Ne4) 25... Rac8 $2 {[%emt 0:03:02]} (25... Bxc3 $14 26. Qxc3 Bxd3 27. Nxd3 h6) 26. b4 $2 {[%emt 0:02:19]} (26. Bxf5 $18 Qxf5 27. Ne4) 26... Bxc3 $14 {[%emt 0:02:23]} 27. Qxc3 {[%emt 0:00:31]} (27. Rxc3 $14 Qd4 28. Rd1 (28. Rxg5 $2 Ne5 $19)) 27... Qxc3 {[%emt 0:00:47]} (27... Ne5 $5 {[%cal Rf5d3]} 28. Be2 (28. Bxf5 Rxc4 29. Qa1 Rxc1 $17) 28... h6 $11) 28. Rxc3 {[%emt 0:00:09] [#] And now Bxf5 would win.} Ne5 {[%emt 0:03:05] Threatens to win with ...Bxd3.} 29. Bxf5 {[%emt 0:00:37]} Rxf5 {[%emt 0:00:05]} 30. Rgc1 {[%emt 0:00:56]} h5 {[%emt 0:01:54]} 31. c5 {[%emt 0:02:53]} (31. Ne4 $5 {[%cal Re4d6]} Nf7 32. Rd1 $14) 31... dxc5 {[%emt 0:06:51]} 32. bxc5 {[%emt 0:00:02]} g4 {[%emt 0:00:12]} 33. fxg4 {[%emt 0:00:44]} Nxg4 {[%emt 0:01:20]} 34. Nxg4 {[%emt 0:01:32]} hxg4 $11 {[%emt 0:00:01][%mdl 4096] Endgame KRR-KRR} 35. Rd1 {[%emt 0:01:45]} Kg7 {[%emt 0:00:08]} 36. Rc4 {[%emt 0:01:36]} Kf7 {[%emt 0:00:57] The position is equal.} 37. d6 {[%emt 0:02:43]} Ke6 {[%emt 0:00:25]} (37... Rcxc5 $2 38. Rxc5 Rxc5 39. d7 $18) 38. c6 {[%emt 0:06:14]} bxc6 {[%emt 0:00:25]} 39. d7 {[%emt 0:00:02]} Rd8 {[%emt 0:00:09]} 40. Rxc6+ {[%emt 0:00:07]} Ke7 {[%emt 0:00:14]} 41. Rxa6 {[%emt 0:00:00]} Rxd7 {[%emt 0:00:00] Weighted Error Value: White=0.28 (precise) /Black=0.27 (precise)} 1/2-1/2

[Event "GER-ch Youth-ODJM 2022"]
[Site "Willingen"]
[Date "2022.06.06"]
[Round "3.3"]
[White "Panjer, Sydney"]
[Black "Köhler, Lukas"]
[Result "1-0"]
[ECO "E92"]
[WhiteElo "2043"]
[BlackElo "2099"]
[Annotator "TA"]
[PlyCount "91"]
[EventDate "2022.06.05"]
[EventType "swiss"]
[EventRounds "9"]
[EventCountry "GER"]
[SourceTitle "playchess.com"]
[Source "ChessBase"]
[SourceQuality "1"]
[TimeControl "40/4500+30:900+30"]

{[%evp 26,91,26,20,17,25,55,36,76,64,74,32,22,26,74,69,106,102,106,69,119,103,270,266,276,263,358,258,244,255,255,247,341,329,329,335,356,351,358,335,334,327,315,315,766,750,612,706,671,580,1838,1771,1579,863,1401,1406,1843,1177,1127,1035,992,957,836,636,816,720,669,530]} 1. Nf3 {[%emt 0:00:00]} Nf6 {[%emt 0:00:00]} 2. c4 {[%emt 0:00:00]} g6 {[%emt 0:00:00]} 3. Nc3 {[%emt 0:00:00]} Bg7 {[%emt 0:00:00]} 4. e4 {[%emt 0:00:00]} d6 {[%emt 0:00:00]} 5. d4 {[%emt 0:00:00]} O-O {[%emt 0:00:00]} 6. Be2 {[%emt 0:00:00]} e5 {[%emt 0:00:00]} 7. dxe5 {[%emt 0:00:00]} dxe5 {[%emt 0:00:00]} 8. Qxd8 {[%emt 0:00:00]} Rxd8 {[%emt 0:00:00]} 9. Bg5 {[%emt 0:00:00]} Re8 {[%emt 0:00:44]} 10. Nd5 {[%emt 0:00:00]} Nxd5 {[%emt 0:00:36]} 11. cxd5 {[%emt 0:00:00]} c6 {[%emt 0:00:05]} 12. Bc4 {[%emt 0:00:00]} cxd5 {[%emt 0:06:12]} 13. Bxd5 {[%emt 0:00:00]} Nc6 {[%emt 0:00:04]} 14. O-O-O $1 {[%emt 0:00:00] 14.0-0-0 scores better than 14.Bxc6.} h6 {[%emt 0:31:05] E92: King's Indian: Classical: 6 Be2 e5: 7 dxe5, 7 Be3 and Petrosian System without 7...Nbd7.} 15. Be3 {[%emt 0:00:00]} Bf8 {[%emt 0:01:18]} 16. Kb1 {[%emt 0:00:00]} Kg7 {[%emt 0:04:54] [#] White is slightly better.} 17. Rc1 $146 {[%emt 0:00:25]} (17. Rd2 {is interesting.} f6 18. Rhd1 Rd8 19. Ne1) ({Predecessor:} 17. h4 Bg4 18. Rc1 Rac8 19. Bxc6 bxc6 20. Bxa7 c5 21. Rhd1 c4 22. Rd5 f6 23. Be3 {1-0 (65) Taboas Rodriguez,D (2367)-Mazi,L (2340) Chess.com INT 2020}) 17... Bd7 {[%emt 0:05:02]} 18. Nd2 {[%emt 0:03:37]} (18. Rhd1 {with more complications.} f6 19. a3 Be7 20. b4) 18... Rac8 {[%emt 0:11:55]} 19. Rhd1 {[%emt 0:01:23]} Bb4 {[%emt 0:18:12]} (19... f6 $11 {should be considered.}) 20. a3 {[%emt 0:04:43]} Bxd2 {[%emt 0:01:51]} 21. Rxd2 {[%emt 0:00:12][%cal Od5f7]} f5 {[%emt 0:01:58]} 22. f3 {[%emt 0:01:39]} a6 {[%emt 0:02:00]} ({Black should play} 22... f4 $14 23. Bxc6 Bxc6 24. Bxa7 Red8) 23. Bb3 {[%emt 0:00:44] White is more active. This bishop pair is nice.} Re7 {[%emt 0:00:32] [#] This move loses the game for Black.} (23... Nb8 $16) 24. Bc5 $1 $18 {[%emt 0:00:46]} Nd4 {[%emt 0:00:28] [#]} 25. Bd5 {[%emt 0:02:31]} (25. Bxe7 Rxc1+ 26. Kxc1 Nxb3+ 27. Kd1 Nxd2 28. Kxd2 fxe4 $11) (25. Rxd4 Rxc5 26. Rxc5 exd4 $14) 25... Ree8 {[%emt 0:00:27]} 26. Bxd4 {[%emt 0:00:37]} Rxc1+ {[%emt 0:00:27]} 27. Kxc1 {[%emt 0:00:01]} exd4 {[%emt 0:00:02]} 28. Bxb7 {[%emt 0:00:35]} ({Don't play} 28. Rxd4 $6 b5 29. Kd2 Kf6 $16) 28... fxe4 {[%emt 0:00:42]} 29. Rxd4 {[%emt 0:00:57][%mdl 4096] Endgame KRB-KRB} Bb5 {[%emt 0:00:25]} 30. Bxe4 {[%emt 0:00:27]} ({But not} 30. Rxe4 $6 Rd8 31. Re6 Bc4 $18) 30... Re6 {[%emt 0:00:55]} 31. Kd2 {[%emt 0:00:29]} Kf6 {[%emt 0:00:06]} 32. Bd3 {[%emt 0:01:35]} Bxd3 {[%emt 0:00:29]} 33. Rxd3 {[%emt 0:00:34] KR-KR} Rb6 {[%emt 0:00:07]} 34. b4 {[%emt 0:00:47]} a5 $2 {[%emt 0:00:26]} (34... Rc6 35. Rd5 Ke6) 35. bxa5 {[%emt 0:00:51] White is clearly winning.} Rb5 {[%emt 0:00:05]} 36. Kc3 {[%emt 0:00:26]} Rxa5 {[%emt 0:00:04]} 37. Kb4 {[%emt 0:00:20]} Ra8 {[%emt 0:00:13]} 38. a4 {[%emt 0:00:31][%cal Ba3a4,Ba4a5,Ba5a6][%mdl 32]} Rb8+ {[%emt 0:00:22]} 39. Ka3 {[%emt 0:12:50]} Ke5 {[%emt 0:00:34]} 40. a5 {[%emt 0:00:24]} Rb1 {[%emt 0:00:21]} 41. Ka2 {[%emt 0:16:45]} Rb7 {[%emt 0:17:11]} 42. a6 {[%emt 0:00:17]} Ra7 {[%emt 0:00:08]} 43. Ra3 {[%emt 0:00:08]} Kd4 {[%emt 0:00:27]} 44. Kb2 {[%emt 0:00:07]} g5 {[%emt 0:00:00]} 45. Kc2 {[%emt 0:00:00]} h5 {[%emt 0:00:00]} 46. Kd2 {[%emt 0:00:00] Weighted Error Value: White=0.18 (very precise) /Black=0.32} 1-0